fUST/lending_fUST_20250719
["ID","MTS","AMOUNT","RATE_DAILY","PERIOD"]
[373158147,1752887481887,-1848.28,0.00021643,2]
[373158148,1752887481897,-2148.2,0.00021643,2]
[373158149,1752887481907,-518.51,0.00021643,2]
[373158150,1752887481918,-464.92,0.00021643,2]
[373158151,1752887481933,-545.24,0.00021643,2]
[373158152,1752887481942,-3362.66,0.00021643,2]
[373158153,1752887481954,-477.85,0.00021643,2]
[373158154,1752887481963,-838.3,0.00021643,2]
[373158155,1752887481973,-579.24,0.00021643,2]
[373158156,1752887481983,-460.0,0.00021643,2]
[373158157,1752887481993,-610.12,0.00021643,2]
[373158158,1752887482002,-515.52,0.00021643,2]
[373158159,1752887482013,-503.83,0.00021643,2]
[373158160,1752887482023,-487.24,0.00021643,2]
[373158161,1752887482035,-4489.86,0.00021643,2]
[373158162,1752887482044,-622.41,0.00021643,2]
[373158163,1752887482053,-666.5,0.00021643,2]
[373158164,1752887482063,-2494.33,0.00021643,2]
[373158165,1752887482073,-781.0,0.00021643,2]
[373158166,1752887482084,-777.69,0.00021643,2]
[373158167,1752887482093,-496.74,0.00021643,2]
[373158168,1752887482103,-592.03,0.00021643,2]
[373158169,1752887482112,-1924.42,0.00021643,2]
[373158170,1752887482122,-494.0,0.00021643,2]
[373158171,1752887482132,-460.0,0.00021643,2]
[373158172,1752887482142,-1019.11,0.00021643,2]
[373158173,1752887482151,-460.0,0.00021643,2]
[373158174,1752887482161,-564.63,0.00021643,2]
[373158175,1752887482171,-556.53,0.00021643,2]
[373158176,1752887482184,-541.96,0.00021643,2]
[373158177,1752887482195,-1447.51,0.00021643,2]
[373158178,1752887482205,-635.79,0.00021643,2]
[373158179,1752887482215,-1371.73,0.00021643,2]
[373158180,1752887482225,-1999.99,0.00021643,2]
[373158181,1752887482234,-460.0,0.00021643,2]
[373158182,1752887482244,-4634.36,0.00021643,2]
[373158183,1752887482253,-460.0,0.00021643,2]
[373158184,1752887482263,-2972.84,0.00021643,2]
[373158185,1752887482272,-551.48,0.00021643,2]
[373158186,1752887482281,-500.0,0.00021644,2]
[373158187,1752887482290,-500.0,0.00021644,2]
[373158188,1752887482300,-151.0,0.00021644,2]
[373158189,1752887482310,-464.83989036,0.00021651,2]
[373158190,1752887482319,-760.0,0.00021663,2]
[373158191,1752887482329,-191.0,0.00021695,2]
[373158192,1752887482338,-250.0,0.00021707,2]
[373158193,1752887482348,-331.4233043,0.00021716,2]
[373158194,1752887482359,-7370.11294292,0.00021736,2]
[373158195,1752887482369,-2636.49776504,0.00021762,5]
[373158196,1752887482380,-800.0,0.00021814,2]
[373158197,1752887482390,-5823.98589143,0.00021817,2]
[373158198,1752887482399,-1434.072949,0.0002184,5]
[373158199,1752887482409,-1000.0,0.0002186,5]
[373158200,1752887482418,-290.266198,0.0002186,2]
[373158201,1752887482427,-290.266198,0.0002186,2]
[373158202,1752887482436,-151.0,0.0002186,2]
[373158203,1752887482446,-1000.0,0.0002188,5]
[373158204,1752887482455,-191.0,0.00021884,2]
[373158205,1752887482464,-800.0,0.00021889,2]
[373158206,1752887482477,-858.4876486,0.00021898,2]
[373158207,1752887482487,-429.318869,0.00021898,2]
[373158208,1752887482496,-429.318869,0.00021898,2]
[373158209,1752887482506,-429.318869,0.00021898,2]
[373158210,1752887482515,-429.318869,0.00021898,2]
[373158211,1752887482525,-429.318869,0.00021898,2]
[373158212,1752887482534,-429.318869,0.00021898,2]
[373158213,1752887482553,-429.318869,0.00021898,2]
[373158214,1752887482571,-429.318869,0.00021898,2]
[373158215,1752887482590,-429.318869,0.00021898,2]
[373158216,1752887482609,-429.1687796,0.00021898,2]
[373158217,1752887482630,-1000.0,0.000219,5]
[373158218,1752887482647,-858.3375592,0.00021902,2]
[373158219,1752887482666,-828.36,0.00021917,2]
[373158220,1752887482680,-524.31,0.00021917,2]
[373158221,1752887482698,-460.0,0.00021917,2]
[373158222,1752887482716,-460.0,0.00021917,2]
[373158223,1752887482735,-460.0,0.00021917,2]
[373158224,1752887482748,-559.02,0.00021917,2]
[373158225,1752887482767,-770.38,0.00021917,2]
[373158226,1752887482782,-480.33,0.00021917,2]
[373158227,1752887482801,-526.17,0.00021917,2]
[373158228,1752887482815,-460.0,0.00021917,2]
[373158229,1752887482830,-683.32,0.00021917,2]
[373158230,1752887482844,-683.32,0.00021917,2]
[373158231,1752887482858,-683.32,0.00021917,2]
[373158232,1752887482874,-683.32,0.00021917,2]
[373158233,1752887482887,-683.32,0.00021917,2]
[373158234,1752887482901,-683.32,0.00021917,2]
[373158235,1752887482915,-683.32,0.00021917,2]
[373158236,1752887482930,-683.32,0.00021917,2]
[373158237,1752887482944,-683.32,0.00021917,2]
[373158238,1752887482958,-683.32,0.00021917,2]
[373158239,1752887482971,-683.32,0.00021917,2]
[373158240,1752887482985,-683.32,0.00021917,2]
[373158241,1752887482999,-683.32,0.00021917,2]
[373158242,1752887483012,-683.32,0.00021917,2]
[373158243,1752887483024,-683.32,0.00021917,2]
[373158244,1752887483039,-683.32,0.00021917,2]
[373158245,1752887483053,-683.32,0.00021917,2]
[373158246,1752887483066,-683.32,0.00021917,2]
[373158247,1752887483081,-683.32,0.00021917,2]
[373158248,1752887483097,-683.32,0.00021917,2]
[373158249,1752887483109,-683.32,0.00021917,2]
[373158250,1752887483123,-490.15,0.00021917,2]
[373158251,1752887483137,-684.73,0.00021917,2]
[373158252,1752887483150,-460.0,0.00021917,2]
[373158253,1752887483164,-460.0,0.00021917,2]
[373158254,1752887483178,-460.0,0.00021917,2]
[373158255,1752887483191,-1088.39,0.00021917,2]
[373158256,1752887483205,-1489.34,0.00021917,2]
[373158257,1752887483219,-460.0,0.00021917,2]
[373158258,1752887483233,-482.44,0.00021917,2]
[373158259,1752887483246,-1848.28,0.00021917,2]
[373158260,1752887483260,-2148.2,0.00021917,2]
[373158261,1752887483273,-518.51,0.00021917,2]
[373158262,1752887483287,-464.92,0.00021917,2]
[373158263,1752887483301,-545.24,0.00021917,2]
[373158264,1752887483315,-3362.66,0.00021917,2]
[373158265,1752887483329,-477.85,0.00021917,2]
[373158266,1752887483344,-838.3,0.00021917,2]
[373158267,1752887483357,-579.24,0.00021917,2]
[373158268,1752887483371,-460.0,0.00021917,2]
[373158269,1752887483387,-610.12,0.00021917,2]
[373158270,1752887483401,-515.52,0.00021917,2]
[373158271,1752887483416,-503.83,0.00021917,2]
[373158272,1752887483430,-487.24,0.00021917,2]
[373158273,1752887483444,-4489.86,0.00021917,2]
[373158274,1752887483457,-622.41,0.00021917,2]
[373158275,1752887483472,-666.5,0.00021917,2]
[373158276,1752887483487,-2494.33,0.00021917,2]
[373158277,1752887483502,-781.0,0.00021917,2]
[373158278,1752887483518,-496.74,0.00021917,2]
[373158279,1752887483534,-777.69,0.00021917,2]
[373158280,1752887483548,-592.03,0.00021917,2]
[373158281,1752887483564,-1924.42,0.00021917,2]
[373158282,1752887483719,-494.0,0.00021917,2]
[373158283,1752887483736,-382.77,0.00021917,2]
[373158284,1752887483746,-1019.11,0.00021917,2]
[373158285,1752887483756,-460.0,0.00021917,2]
[373158286,1752887483766,-564.63,0.00021917,2]
[373158287,1752887483776,-556.53,0.00021917,2]
[373158288,1752887483790,-541.96,0.00021917,2]
[373158289,1752887483799,-1447.51,0.00021917,2]
[373158290,1752887483809,-635.79,0.00021917,2]
[373158291,1752887483819,-1371.73,0.00021917,2]
[373158292,1752887483828,-1999.99,0.00021917,2]
[373158293,1752887483838,-460.0,0.00021917,2]
[373158294,1752887483848,-4634.36,0.00021917,2]
[373158295,1752887483860,-460.0,0.00021917,2]
[373158296,1752887483870,-2972.84,0.00021917,2]
[373158297,1752887483880,-551.48,0.00021917,2]
[373158298,1752887483890,-206.147325,0.00021918,2]
[373158299,1752887483900,-206.147325,0.00021918,2]
[373158300,1752887483909,-206.147325,0.00021918,2]
[373158301,1752887483919,-206.147325,0.00021918,2]
[373158302,1752887483929,-206.147325,0.00021918,2]
[373158303,1752887483938,-206.147325,0.00021918,2]
[373158304,1752887483948,-206.147325,0.00021918,2]
[373158305,1752887483957,-206.147325,0.00021918,2]
[373158306,1752887483968,-206.147325,0.00021918,2]
[373158307,1752887483978,-206.147325,0.00021918,2]
[373158308,1752887483988,-206.147325,0.00021918,2]
[373158309,1752887483998,-206.147325,0.00021918,2]
[373158310,1752887484007,-206.147325,0.00021918,2]
[373158311,1752887484017,-206.147325,0.00021918,2]
[373158312,1752887484026,-150.0,0.00021918,2]
[373158313,1752887484035,-150.0,0.00021918,2]
[373158314,1752887484045,-278.55719364,0.00021918,2]
[373158315,1752887484054,-200.0,0.00021918,2]
[373158316,1752887484064,-500.0,0.00021918,2]
[373158317,1752887484074,-181.0,0.00021918,2]
[373158318,1752887484083,-357.483414,0.00021918,2]
[373158319,1752887484093,-1000.0,0.0002192,5]
[373158320,1752887484103,-191.0,0.00021925,2]
[373158321,1752887484112,-1000.0,0.0002194,5]
[373158322,1752887484122,-159.87769309,0.00021945,2]
[373158323,1752887484133,-1000.0,0.0002196,5]
[373158324,1752887484143,-191.0,0.00021972,2]
[373158325,1752887484153,-500.0,0.00021973,2]
[373158326,1752887484163,-1000.0,0.0002198,5]
[373158327,1752887484172,-2550.84125431,0.00022,2]
[373158328,1752887484182,-550.56430189,0.00022,2]
[373158329,1752887484191,-76425.42,0.00022,2]
[373158330,1752887484201,-151.0,0.00022,7]
[373158331,1752887484211,-151.0,0.00022,7]
[373158332,1752887484220,-151.0,0.00022,7]
[373158333,1752887484230,-151.0,0.00022,7]
[373158334,1752887484239,-151.0,0.00022,7]
[373158335,1752887484249,-151.0,0.00022,7]
[373158336,1752887484260,-151.0,0.00022,7]
[373158337,1752887484270,-151.0,0.00022,7]
[373158338,1752887484280,-151.0,0.00022,7]
[373158339,1752887484289,-151.0,0.00022,7]
[373158340,1752887484299,-151.0,0.00022,7]
[373158341,1752887484309,-500.0,0.00022,2]
[373158342,1752887484318,-151.0,0.00022,7]
[373158343,1752887484327,-151.0,0.00022,7]
[373158344,1752887484337,-18082.06,0.00022,7]
[373158345,1752887484346,-2644.83,0.00022,7]
[373158346,1752887484355,-6201.99,0.00022,7]
[373158347,1752887484365,-151.0,0.00022,7]
[373158348,1752887484375,-151.0,0.00022,7]
[373158349,1752887484385,-151.0,0.00022,7]
[373158350,1752887484394,-151.43681,0.00022,7]
[373158351,1752887484404,-1000.0,0.00022,5]
[373158352,1752887484415,-151.0,0.00022,7]
[373158353,1752887484426,-151.0,0.00022,7]
[373158354,1752887484437,-1199.93098,0.00022,7]
[373158355,1752887484447,-1199.93098,0.00022,7]
[373158356,1752887484458,-1125.3635,0.00022,2]
[373158357,1752887484468,-476.25663856,0.00022,7]
[373158358,1752887484478,-214.4881157,0.00022,7]
[373158359,1752887484489,-151.0,0.00022,7]
[373158360,1752887484499,-2636.49776504,0.00022003,6]
[373158361,1752887484509,-2200.0,0.00022009,2]
[373158362,1752887484519,-5888.0,0.00022071,2]
[373158363,1752887484528,-332.0,0.00022078,2]
[373158364,1752887484538,-159.87769308,0.00022082,2]
[373158365,1752887484547,-206.0,0.0002216,2]
[373158366,1752887484557,-2392.55,0.00022191,2]
[373158367,1752887484566,-151.0,0.00022191,7]
[373158368,1752887484576,-151.0,0.00022191,7]
[373158369,1752887484586,-151.0,0.00022191,7]
[373158370,1752887484596,-151.0,0.00022191,7]
[373158371,1752887484606,-151.0,0.00022191,7]
[373158372,1752887484615,-151.0,0.00022191,7]
[373158373,1752887484625,-151.0,0.00022191,7]
[373158374,1752887484637,-151.0,0.00022191,7]
[373158375,1752887484646,-828.36,0.00022191,2]
[373158376,1752887484656,-524.31,0.00022191,2]
[373158377,1752887484665,-176.51204522,0.00022191,2]
[373158378,1752887484675,-460.0,0.00022191,2]
[373158379,1752887484684,-460.0,0.00022191,2]
[373158380,1752887484694,-559.02,0.00022191,2]
[373158381,1752887484704,-770.38,0.00022191,2]
[373158382,1752887484713,-480.33,0.00022191,2]
[373158383,1752887484723,-151.0,0.00022191,7]
[373158384,1752887484732,-526.17,0.00022191,2]
[373158385,1752887484742,-460.0,0.00022191,2]
[373158386,1752887484751,-683.32,0.00022191,2]
[373158387,1752887484761,-490.15,0.00022191,2]
[373158388,1752887484770,-684.73,0.00022191,2]
[373158389,1752887484781,-460.0,0.00022191,2]
[373158390,1752887484792,-460.0,0.00022191,2]
[373158391,1752887484801,-460.0,0.00022191,2]
[373158392,1752887484811,-1088.39,0.00022191,2]
[373158393,1752887484820,-1489.34,0.00022191,2]
[373158394,1752887484830,-460.0,0.00022191,2]
[373158395,1752887484839,-482.44,0.00022191,2]
[373158396,1752887484849,-1848.28,0.00022191,2]
[373158397,1752887484859,-2148.2,0.00022191,2]
[373158398,1752887484871,-518.51,0.00022191,2]
[373158399,1752887484882,-464.92,0.00022191,2]
[373158400,1752887484892,-545.24,0.00022191,2]
[373158401,1752887484902,-3362.66,0.00022191,2]
[373158402,1752887484911,-477.85,0.00022191,2]
[373158403,1752887484921,-838.3,0.00022191,2]
[373158404,1752887484930,-579.24,0.00022191,2]
[373158405,1752887484940,-460.0,0.00022191,2]
[373158406,1752887484950,-610.12,0.00022191,2]
[373158407,1752887484960,-515.52,0.00022191,2]
[373158408,1752887484969,-503.83,0.00022191,2]
[373158409,1752887484978,-487.24,0.00022191,2]
[373158410,1752887484988,-4489.86,0.00022191,2]
[373158411,1752887484997,-290.266198,0.00022191,7]
[373158412,1752887485007,-622.41,0.00022191,2]
[373158413,1752887485016,-290.266198,0.00022191,7]
[373158414,1752887485026,-666.5,0.00022191,2]
[373158415,1752887485035,-2494.33,0.00022191,2]
[373158416,1752887485045,-206.147325,0.00022191,7]
[373158417,1752887485054,-206.147325,0.00022191,7]
[373158418,1752887485064,-151.0,0.00022191,7]
[373158419,1752887485074,-781.0,0.00022191,2]
[373158420,1752887485083,-496.74,0.00022191,2]
[373158421,1752887485094,-777.69,0.00022191,2]
[373158422,1752887485104,-592.03,0.00022191,2]
[373158423,1752887485113,-1924.42,0.00022191,2]
[373158424,1752887485123,-494.0,0.00022191,2]
[373158425,1752887485134,-1019.11,0.00022191,2]
[373158426,1752887485143,-460.0,0.00022191,2]
[373158427,1752887485153,-564.63,0.00022191,2]
[373158428,1752887485163,-556.53,0.00022191,2]
[373158429,1752887485172,-541.96,0.00022191,2]
[373158430,1752887485182,-1447.51,0.00022191,2]
[373158431,1752887485192,-635.79,0.00022191,2]
[373158432,1752887485202,-1371.73,0.00022191,2]
[373158433,1752887485212,-1999.99,0.00022191,2]
[373158434,1752887485221,-245.61393404,0.00022191,2]
[373158435,1752887485231,-4634.36,0.00022191,2]
[373158436,1752887485240,-460.0,0.00022191,2]
[373158437,1752887485249,-2972.84,0.00022191,2]
[373158438,1752887485259,-551.48,0.00022191,2]
[373158439,1752887485268,-500.0,0.00022192,2]
[373158440,1752887485277,-332.0,0.00022207,2]
[373158441,1752887485287,-191.0,0.00022208,2]
[373158442,1752887485296,-860.0,0.00022211,2]
[373158443,1752887485305,-159.87769308,0.00022219,2]
[373158444,1752887485314,-159.87769309,0.00022219,2]
[373158445,1752887485323,-159.87769308,0.00022219,2]
[373158446,1752887485332,-160.0,0.00022232,4]
[373158447,1752887485342,-2636.49776504,0.00022245,6]
[373158448,1752887485351,-153.0,0.00022247,2]
[373158449,1752887485361,-153.0,0.00022247,2]
[373158450,1752887485371,-153.0,0.00022247,2]
[373158451,1752887485382,-191.0,0.00022288,2]
[373158452,1752887485392,-5888.0,0.00022292,2]
[373158453,1752887485402,-656.87712601,0.000223,2]
[373158454,1752887485412,-151.0,0.000223,7]
[373158455,1752887485421,-153.3126679,0.00022308,2]
[373158456,1752887485431,-1153.5305713,0.00022308,2]
[373158457,1752887485440,-159.87769308,0.00022356,2]
[373158458,1752887485450,-235.26640076,0.00022365,2]
[373158459,1752887485460,-28362.78840844,0.000224,2]
[373158460,1752887485732,-890.53221361,0.000224,2]
[373158461,1752887485745,-435.0,0.000224,2]
[373158462,1752887485762,-692.09,0.00019178,2]
[373158463,1752887485771,-23278.90598643,0.000224,2]
[373158464,1752887485783,-151.0,0.000224,7]
[373158465,1752887485793,-285.623926,0.000224,7]
[373158466,1752887485803,-191.0,0.00022407,2]
[373158467,1752887485812,-332.0,0.0002241,2]
[373158468,1752887485822,-2392.55,0.00022465,2]
[373158469,1752887485831,-828.36,0.00022465,2]
[373158470,1752887485840,-524.31,0.00022465,2]
[373158471,1752887485850,-460.0,0.00022465,2]
[373158472,1752887485860,-460.0,0.00022465,2]
[373158473,1752887485870,-559.02,0.00022465,2]
[373158474,1752887485881,-770.38,0.00022465,2]
[373158475,1752887485891,-480.33,0.00022465,2]
[373158476,1752887485900,-526.17,0.00022465,2]
[373158477,1752887485909,-460.0,0.00022465,2]
[373158478,1752887485918,-683.32,0.00022465,2]
[373158479,1752887485927,-490.15,0.00022465,2]
[373158480,1752887485936,-684.73,0.00022465,2]
[373158481,1752887485945,-460.0,0.00022465,2]
[373158482,1752887485955,-497.27215349,0.00022465,2]
[373158483,1752887485964,-176.9930995,0.00022465,2]
[373158484,1752887485974,-1088.39,0.00022465,2]
[373158485,1752887485983,-1489.34,0.00022465,2]
[373158486,1752887485992,-263.7,0.00022465,2]
[373158487,1752887486001,-482.44,0.00022465,2]
[373158488,1752887486011,-1848.28,0.00022465,2]
[373158489,1752887486021,-2148.2,0.00022465,2]
[373158490,1752887486030,-518.51,0.00022465,2]
[373158491,1752887486040,-464.92,0.00022465,2]
[373158492,1752887486049,-545.24,0.00022465,2]
[373158493,1752887486058,-3362.66,0.00022465,2]
[373158494,1752887486067,-477.85,0.00022465,2]
[373158495,1752887486076,-838.3,0.00022465,2]
[373158496,1752887486086,-579.24,0.00022465,2]
[373158497,1752887486095,-460.0,0.00022465,2]
[373158498,1752887486104,-610.12,0.00022465,2]
[373158499,1752887486114,-515.52,0.00022465,2]
[373158500,1752887486123,-503.83,0.00022465,2]
[373158501,1752887486135,-487.24,0.00022465,2]
[373158502,1752887486144,-4489.86,0.00022465,2]
[373158503,1752887486155,-622.41,0.00022465,2]
[373158504,1752887486164,-666.5,0.00022465,2]
[373158505,1752887486174,-2494.33,0.00022465,2]
[373158506,1752887486186,-781.0,0.00022465,2]
[373158507,1752887486197,-496.74,0.00022465,2]
[373158508,1752887486206,-777.69,0.00022465,2]
[373158509,1752887486216,-592.03,0.00022465,2]
[373158510,1752887486226,-1924.42,0.00022465,2]
[373158511,1752887486235,-494.0,0.00022465,2]
[373158512,1752887486245,-1019.11,0.00022465,2]
[373158513,1752887486254,-460.0,0.00022465,2]
[373158514,1752887486263,-564.63,0.00022465,2]
[373158515,1752887486272,-556.53,0.00022465,2]
[373158516,1752887486282,-541.96,0.00022465,2]
[373158517,1752887486291,-1447.51,0.00022465,2]
[373158518,1752887486300,-635.79,0.00022465,2]
[373158519,1752887486310,-1371.73,0.00022465,2]
[373158520,1752887486319,-1999.99,0.00022465,2]
[373158521,1752887486330,-4634.36,0.00022465,2]
[373158522,1752887486339,-298.1218813,0.00022465,2]
[373158523,1752887486348,-2972.84,0.00022465,2]
[373158524,1752887486357,-551.48,0.00022465,2]
[373158525,1752887486367,-300.0,0.00022466,2]
[373158526,1752887486375,-500.0,0.00022466,2]
[373158527,1752887486386,-7370.11294292,0.00022469,2]
[373158528,1752887486395,-191.0,0.00022482,2]
[373158529,1752887486404,-2636.49776504,0.00022486,7]
[373158530,1752887486413,-159.87769308,0.00022493,2]
[373158531,1752887486423,-159.87769309,0.00022521,2]
[373158532,1752887486432,-191.0,0.00022571,2]
[373158533,1752887486441,-206.0,0.0002258,2]
[373158534,1752887486451,-191.0,0.00022599,2]
[373158535,1752887486460,-1097.31827642,0.000226,4]
[373158536,1752887486470,-151.0,0.000226,7]
[373158537,1752887486479,-191.0,0.00022601,2]
[373158538,1752887486489,-400.0,0.00022603,2]
[373158539,1752887486499,-200.0,0.00022638,2]
[373158540,1752887486508,-500.0,0.00022638,2]
[373158541,1752887486518,-159.87769308,0.00022658,2]
[373158542,1752887486527,-191.0,0.00022699,2]
[373158543,1752887486537,-647.0,0.000227,2]
[373158544,1752887486546,-2156.0,0.000227,2]
[373158545,1752887486556,-968.0,0.000227,2]
[373158546,1752887486566,-407.0,0.000227,2]
[373158547,1752887486576,-1702.45,0.00022704,6]
[373158548,1752887486585,-191.0,0.00022727,2]
[373158549,1752887486595,-2636.49776504,0.00022728,7]
[373158550,1752887486604,-12500.0,0.00022731,7]
[373158551,1752887486614,-2392.76975543,0.00022739,2]
[373158552,1752887486624,-828.37464552,0.00022739,2]
[373158553,1752887486639,-524.54,0.00022739,2]
[373158554,1752887486654,-153.10678296,0.00022739,2]
[373158555,1752887486677,-460.0,0.00022739,2]
[373158556,1752887486692,-431.41101656,0.00022739,2]
[373158557,1752887486702,-559.19,0.00022739,2]
[373158558,1752887486712,-770.56664099,0.00022739,2]
[373158559,1752887486722,-480.52186556,0.00022739,2]
[373158560,1752887486731,-526.22,0.00022739,2]
[373158561,1752887486741,-201.24861914,0.00022739,2]
[373158562,1752887486750,-683.47923944,0.00022739,2]
[373158563,1752887486760,-490.16931476,0.00022739,2]
[373158564,1752887486769,-684.79783679,0.00022739,2]
[373158565,1752887486779,-223.36,0.00022739,2]
[373158566,1752887486792,-1088.51,0.00022739,2]
[373158567,1752887486802,-1489.43194897,0.00022739,2]
[373158568,1752887486811,-482.5,0.00022739,2]
[373158569,1752887486821,-1848.36257167,0.00022739,2]
[373158570,1752887486830,-2148.31882127,0.00022739,2]
[373158571,1752887486840,-518.66049823,0.00022739,2]
[373158572,1752887486850,-465.12,0.00022739,2]
[373158573,1752887486859,-545.44313502,0.00022739,2]
[373158574,1752887486870,-3362.8445063,0.00022739,2]
[373158575,1752887486883,-478.01,0.00022739,2]
[373158576,1752887486892,-838.31,0.00022739,2]
[373158577,1752887486907,-579.36869986,0.00022739,2]
[373158578,1752887486916,-324.85149582,0.00022739,2]
[373158579,1752887486926,-610.25627465,0.00022739,2]
[373158580,1752887486935,-515.64811205,0.00022739,2]
[373158581,1752887486945,-504.0,0.00022739,2]
[373158582,1752887486955,-487.31,0.00022739,2]
[373158583,1752887486964,-4138.71566329,0.00022739,2]
[373158584,1752887487532,-282.72,0.00016438,2]
[373158585,1752887487729,-179.32924533,0.00016438,2]
[373158586,1752887487738,-460.0,0.00016438,2]
[373158587,1752887487748,-460.0,0.00016438,2]
[373158588,1752887487758,-460.0,0.00016438,2]
[373158589,1752887487768,-460.0,0.00016438,2]
[373158590,1752887487778,-50.30546778,0.00016438,2]
[373158591,1752887487792,-409.69453222,0.00016438,2]
[373158592,1752887487804,-423.44209586,0.00016712,2]
[373158593,1752887489520,150.0,0.00014649,2]
[373158594,1752887596514,418.259719,0.00013699,2]
[373158597,1752887728637,170.47028629,0.00016338,2]
[373158599,1752887846143,1173116.42308174,0.000163,2]
[373158603,1752888199223,4015.16,0.000163,2]
[373158606,1752888431294,-6417.80782986,0.000163,2]
[373158608,1752888490855,24900.0,0.00015433,2]
[373158609,1752888495607,-509.56922863,0.000163,2]
[373158610,1752888498213,-581.20332688,0.000163,2]
[373158611,1752888528792,150.0,0.00014646,2]
[373158613,1752888615682,152.58998866,0.000163,2]
[373158614,1752888630964,200.0,0.00025697,120]
[373158636,1752888637846,-76403.08664659,0.000163,2]
[373158637,1752888637856,-1090.77255551,0.000163,2]
[373158638,1752888637867,-413.81511351,0.00016338,2]
[373158639,1752888637876,-230.22634369,0.00016338,2]
[373158640,1752888637885,-1200.0,0.00016426,2]
[373158641,1752888637895,-300.0,0.00016427,2]
[373158642,1752888637904,-300.0,0.00016427,2]
[373158643,1752888637914,-300.0,0.00016427,2]
[373158645,1752888637923,-300.0,0.00016427,2]
[373158646,1752888637933,-300.0,0.00016427,2]
[373158647,1752888637943,-1200.0,0.00016427,2]
[373158648,1752888637952,-17561.12021744,0.00016428,2]
[373158649,1752888637961,-469.62,0.00016428,3]
[373158650,1752888637971,-876.81,0.00016428,3]
[373158651,1752888637980,-438.41,0.00016428,3]
[373158652,1752888637989,-219.2,0.00016428,3]
[373158653,1752888637999,-657.63,0.00016428,3]
[373158654,1752888638009,-338.48,0.00016428,3]
[373158655,1752888638019,-169.24,0.00016428,3]
[373158656,1752888638028,-507.73,0.00016428,3]
[373158657,1752888638038,-160.0,0.00016435,2]
[373158658,1752888638047,-157.026,0.00016437,2]
[373158659,1752888638056,-460.0,0.00016438,2]
[373158660,1752888638066,-460.0,0.00016438,2]
[373158661,1752888638075,-460.0,0.00016438,2]
[373158662,1752888638085,-460.0,0.00016438,2]
[373158663,1752888638095,-460.0,0.00016438,2]
[373158664,1752888638104,-461.91054014,0.00016438,2]
[373158665,1752888638116,-460.0,0.00016438,2]
[373158666,1752888638125,-461.51554214,0.00016438,2]
[373158667,1752888638135,-460.0,0.00016438,2]
[373158668,1752888638148,-460.0,0.00016438,2]
[373158669,1752888638158,-460.0,0.00016438,2]
[373158670,1752888638168,-460.0,0.00016438,2]
[373158671,1752888638181,-460.0,0.00016438,2]
[373158672,1752888638192,-340.0,0.00016438,2]
[373158673,1752888638202,-460.0,0.00016438,2]
[373158674,1752888638216,-266.04683498,0.00016438,2]
[373158675,1752888638240,-460.0,0.00016438,2]
[373158676,1752888638260,-501.02020079,0.00016438,2]
[373158677,1752888638281,-460.0,0.00016438,2]
[373158678,1752888638291,-460.0,0.00016438,2]